bitfinex/quotes_SOLUSD_20220227
["timestamp","ask_amount","ask_price","bid_price","bid_amount"]
[1645992019276,7.55813698,84.928,84.813,35.71569107]
[1645992019478,7.55813698,84.928,84.814,6.0]
[1645992019676,7.55813698,84.928,84.82,58.9426]
[1645992019876,6.0,84.928,84.822,2.93699595]
[1645992020077,1.83288122,84.928,84.823,6.0]
[1645992020277,6.0,84.927,84.823,6.0]
[1645992020476,6.0,84.927,84.82,61.2011511]
[1645992021082,116.5,84.926,84.82,61.2011511]
[1645992021276,1.49785824,84.923,84.82,58.9426]
[1645992021476,6.0,84.922,84.83,17.6851]
[1645992021677,8.74678921,84.922,84.813,35.71569107]
[1645992021876,137.63710357,84.921,84.813,35.71569107]
[1645992022078,116.5,84.919,84.813,35.71569107]
[1645992022277,29.37516066,84.916,84.813,35.71569107]
[1645992022479,122.5,84.915,84.813,35.71569107]
[1645992022676,1.81561862,84.914,84.813,35.71569107]
[1645992022905,116.5,84.912,84.813,35.71569107]
[1645992023100,116.5,84.91,84.813,35.71569107]
[1645992023299,116.5,84.908,84.813,35.71569107]
[1645992023500,1.79873027,84.905,84.813,35.71569107]
[1645992023702,129.90472565,84.903,84.813,35.71569107]
[1645992023902,129.90472565,84.903,84.76,61.3360372]
[1645992023903,116.5,84.901,84.76,61.3360372]
[1645992024103,5.0,84.887,84.732,2.85021815]
[1645992024301,5.0,84.877,84.732,2.85021815]
[1645992024502,1.39803472,84.874,84.731,72.1414]
[1645992024703,5.0,84.866,84.731,23.3747]
[1645992024901,1.39803472,84.874,84.681,72.4755]
[1645992024902,5.0,84.846,84.729,29.97807306]
[1645992025109,116.5,84.844,84.697,4.716]
[1645992025309,116.5,84.844,84.682,45.8895]
[1645992025310,5.0,84.836,84.698,6.0]
[1645992025505,116.5,84.834,84.696,6.0]
[1645992025703,5.0,84.826,84.699,4.718]
[1645992025904,116.5,84.824,84.7,6.0]
[1645992026108,116.5,84.822,84.701,28.72048509]
[1645992026307,116.5,84.82,84.702,6.0]
[1645992026505,116.5,84.818,84.702,6.0]
[1645992026712,116.5,84.816,84.702,6.0]
[1645992026905,116.5,84.814,84.702,6.0]
[1645992027105,116.5,84.812,84.71,17.7112]
[1645992027306,116.5,84.808,84.71,17.7112]
[1645992027506,116.5,84.806,84.71,17.7112]
[1645992027705,116.5,84.804,84.71,17.7112]
[1645992027906,7.80698936,84.803,84.702,6.0]
[1645992028108,1.81086605,84.808,84.73,17.7066]
[1645992028308,13.96179253,84.809,84.704,3.06560642]
[1645992028507,13.96179253,84.809,84.706,116.5]
[1645992028709,1.36843272,84.808,84.709,2.61753698]
[1645992028913,6.0,84.807,84.705,4.719]
[1645992029114,116.5,84.799,84.701,33.43948509]
[1645992029311,1.5863975,84.798,84.701,28.72048509]
[1645992029611,1.5863975,84.798,84.673,116.5]
[1645992029612,116.5,84.794,84.655,2.67715994]
[1645992029811,116.5,84.792,84.608,2.2561036]
[1645992030012,130.27,84.79,84.648,4.721]
[1645992030214,116.5,84.788,84.627,2.74678921]
[1645992030419,5.0,84.766,84.627,2.74678921]
[1645992030614,5.0,84.766,84.608,2.91095884]
[1645992030615,116.5,84.764,84.628,4.722]
[1645992030912,116.5,84.759,84.629,11.6665836]
[1645992031115,17.7256,84.75,84.63,17.727]
[1645992031316,26.88822713,84.748,84.63,4.722]
[1645992031517,1.42937123,84.747,84.63,4.722]
[1645992031715,7.42937123,84.747,84.63,4.722]
[1645992032115,7.42937123,84.747,84.631,6.0]
[1645992032318,116.5,84.746,84.65,17.7224]
[1645992032515,116.5,84.744,84.632,4.723]
[1645992032816,116.5,84.742,84.608,4.723]
[1645992033015,116.5,84.74,84.609,6.0]
[1645992033217,116.5,84.738,84.61,17.7309]
[1645992033417,7.62574321,84.737,84.611,6.0]
[1645992033619,10.37253242,84.737,84.612,4.724]
[1645992033820,1.66626094,84.736,84.613,6.0]
[1645992034023,22.39165918,84.735,84.614,4.723]
[1645992034216,1.56229219,84.734,84.615,6.0]
[1645992034417,6.0,84.733,84.616,4.723]
[1645992034617,122.5,84.733,84.616,4.723]
[1645992034915,6.0,84.733,84.612,7.35656864]
[1645992035119,8.74678921,84.733,84.613,6.0]
[1645992035316,1.55689376,84.729,84.62,17.728]
[1645992035517,6.0,84.728,84.621,4.723]
[1645992035719,8.74678921,84.728,84.621,4.723]
[1645992035917,30.60950521,84.727,84.621,4.723]
[1645992036116,7.79649003,84.726,84.611,35.4751954]
[1645992036316,1.35256127,84.725,84.612,6.0]
[1645992036519,6.0,84.724,84.62,17.729]
[1645992036919,6.0,84.724,84.621,4.724]
[1645992037319,6.0,84.724,84.613,4.724]
[1645992037518,4.09935048,84.725,84.614,6.0]
[1645992037716,4.09935048,84.725,84.612,13.04260978]
[1645992037922,27.862716,84.723,84.612,4.724]
[1645992038118,26.88822713,84.721,84.612,4.724]
[1645992038321,1.53681731,84.72,84.611,35.4751954]
[1645992038517,33.602716,84.72,84.611,35.4751954]
[1645992038718,1.51634578,84.718,84.612,4.724]
[1645992038919,116.5,84.689,84.612,4.724]
[1645992039120,16.39165918,84.688,84.612,4.724]
[1645992039320,1.78153568,84.687,84.612,4.724]
[1645992039519,1.78153568,84.687,84.611,35.4751954]
[1645992039520,7.76313976,84.687,84.611,35.4751954]
[1645992039720,7.76313976,84.687,84.612,4.725]
[1645992040122,7.76313976,84.687,84.611,35.4751954]
[1645992040321,10.50992897,84.687,84.611,35.4751954]
[1645992041221,1.8646053,84.685,84.611,35.4751954]
[1645992041420,116.5,84.683,84.611,35.4751954]
[1645992041644,116.5,84.683,84.548,2.38170816]
[1645992041645,7.72412589,84.682,84.548,2.38170816]
[1645992041821,116.18587737,84.681,84.548,2.38170816]
[1645992042020,116.18587737,84.679,84.568,4.726]
[1645992042219,116.18587737,84.677,84.549,4.726]
[1645992042421,1.86554375,84.674,84.549,4.726]
[1645992042624,116.5,84.671,84.568,32.32434535]
[1645992042821,116.5,84.669,84.568,32.32434535]
[1645992043029,116.5,84.667,84.569,4.727]
[1645992043225,116.5,84.665,84.569,4.727]
[1645992043425,116.5,84.663,84.569,4.727]
[1645992043729,1.54371256,84.66,84.568,32.32434535]
[1645992043926,16.39165918,84.658,84.569,4.727]
[1645992044529,16.39165918,84.658,84.569,7.17366862]
[1645992044929,16.39165918,84.658,84.57,6.0]
[1645992045126,16.39165918,84.658,84.57,17.736]
[1645992045331,1.4894935,84.657,84.571,4.727]
[1645992045829,16.39165918,84.658,84.569,4.727]
[1645992046833,2.74678921,84.691,84.569,123.71289018]
[1645992047031,1.87345397,84.708,84.571,116.5]
[1645992047231,2.74678921,84.714,84.61,17.7254]
[1645992047431,6.0,84.713,84.611,6.0]
[1645992047633,1.59314768,84.718,84.611,6.0]
[1645992047832,35.57765157,84.717,84.612,16.92976834]
[1645992048032,1.54648897,84.716,84.613,6.0]
[1645992048231,1.54648897,84.716,84.614,4.724]
[1645992048432,35.57765157,84.717,84.62,17.7267]
[1645992048634,213.12095373,84.824,84.621,8.5554438]
[1645992048635,1.78671482,84.725,84.621,8.5554438]
[1645992048932,5.0,84.796,84.621,16.02623301]
[1645992048933,2.74678921,84.748,84.621,16.02623301]
[1645992049167,2.74678921,84.752,84.622,116.5]
[1645992049359,2.74678921,84.752,84.623,13.11806574]
[1645992049560,29.22234617,84.751,84.66,17.7183]
[1645992049760,29.22234617,84.751,84.661,32.34798324]
[1645992049960,29.22234617,84.751,84.661,27.62598324]
[1645992050164,29.22234617,84.751,84.662,6.0]
[1645992050362,1.48902564,84.75,84.663,116.5]
[1645992050562,28.72234617,84.751,84.665,116.5]
[1645992050761,1.44093294,84.765,84.672,2.78050746]
[1645992050961,2.74678921,84.783,84.675,3.0075282]
[1645992051161,1.37430377,84.796,84.678,2.7904481]
[1645992051362,2.74678921,84.826,84.685,116.5]
[1645992051569,2.74678921,84.826,84.69,13.77]
[1645992051763,33.94331161,84.847,84.693,116.5]
[1645992051961,33.94331161,84.847,84.771,27.62598324]
[1645992052163,33.94331161,84.847,84.695,5.75]
[1645992052164,116.5,84.845,84.71,13.77]
[1645992052361,116.5,84.845,84.694,22.89943514]
[1645992052362,2.74678921,84.77,84.694,13.56122514]
[1645992052565,8.16993863,84.844,84.695,4.72]
[1645992052566,116.5,84.806,84.695,4.72]
[1645992052767,112.6,84.813,84.628,2.54752715]
[1645992052768,2.74678921,84.795,84.629,2.00111079]
[1645992053067,10.69406126,84.792,84.65,134.2183]
[1645992053262,116.5,84.79,84.631,2.31587378]
[1645992053462,1.69969912,84.787,84.63,29.42849139]
[1645992053662,5.0,84.766,84.63,29.42849139]
[1645992053863,5.0,84.746,84.631,4.722]
[1645992054062,6.0,84.765,84.631,4.722]
[1645992054063,5.0,84.736,84.631,4.722]
[1645992054266,118.1092478,84.729,84.63,29.42849139]
[1645992054462,6.0,84.728,84.63,29.42849139]
[1645992054665,116.5,84.725,84.631,4.723]
[1645992054863,1.77211187,84.722,84.63,29.42849139]
[1645992055163,1.81312416,84.719,84.63,29.42849139]
[1645992055363,116.5,84.717,84.63,29.42849139]
[1645992055562,8.02717088,84.716,84.63,29.42849139]
[1645992055766,4.77396009,84.716,84.63,29.42849139]
[1645992055967,6.0,84.715,84.63,29.42849139]
[1645992056265,8.74678921,84.715,84.63,29.42849139]
[1645992056463,10.66094689,84.713,84.63,29.42849139]
[1645992056663,7.63011311,84.712,84.63,29.42849139]
[1645992056965,7.63011311,84.712,84.63,29.36970839]
[1645992057463,2.74678921,84.711,84.63,29.36970839]
[1645992057665,6.0,84.71,84.63,29.36970839]
[1645992058163,8.74678921,84.71,84.63,29.36970839]
[1645992058363,6.0,84.709,84.631,4.724]
[1645992058566,2.74678921,84.728,84.631,4.724]
[1645992058766,2.74678921,84.738,84.631,4.724]
[1645992059167,36.5433745,84.737,84.631,4.724]
[1645992059366,1.85158837,84.736,84.631,4.724]
[1645992059570,1.85158837,84.736,84.63,35.59648839]
[1645992060369,4.49738377,84.748,84.631,4.723]
[1645992060570,4.49738377,84.748,84.65,116.5]
[1645992060769,2.74678921,84.768,84.651,2.08296558]
[1645992060972,2.74678921,84.778,84.651,4.722]
[1645992061171,2.74678921,84.778,84.652,15.6016223]
[1645992061371,2.74678921,84.778,84.653,116.5]
[1645992061572,2.74678921,84.797,84.671,116.5]
[1645992061771,2.74678921,84.797,84.673,116.5]
[1645992061971,213.12095373,84.825,84.676,69.78]
[1645992062282,213.12095373,84.825,84.696,69.78]
[1645992062475,213.12095373,84.825,84.703,116.5]
[1645992062672,213.12095373,84.825,84.771,17.87278839]
[1645992062875,1.88123129,84.831,84.771,17.87278839]
[1645992063576,2.20952752,84.864,84.771,17.87278839]
[1645992063774,6.0,84.863,84.771,17.87278839]
[1645992063976,27.14002394,84.872,84.771,17.87278839]
[1645992064176,2.19113469,84.871,84.771,17.87278839]
[1645992064574,26.76746408,84.87,84.771,17.87278839]
[1645992064778,1.9241242,84.869,84.771,17.87278839]
[1645992064975,26.76746408,84.87,84.79,17.6911]
[1645992065175,27.14002394,84.883,84.791,18.12112641]
[1645992065375,27.14002394,84.896,84.792,118.5213347]
[1645992065577,112.6,84.899,84.794,116.5]
[1645992065778,112.6,84.899,84.791,15.6016223]
[1645992065779,7.85852288,84.898,84.795,6.0]
[1645992065979,7.85852288,84.898,84.791,15.6016223]
[1645992066179,62.03113028,84.897,84.791,15.6016223]
[1645992066378,7.87030322,84.896,84.791,15.6016223]
[1645992066579,6.0,84.896,84.792,2.16533523]
[1645992066781,34.89110634,84.897,84.792,2.16533523]
[1645992066981,34.89110634,84.897,84.83,17.6827]
[1645992067179,27.14002394,84.911,84.831,17.87278839]
[1645992067383,27.14002394,84.925,84.832,6.0]
[1645992067581,27.14002394,84.938,84.834,2.17656541]
[1645992067780,1.98519451,84.937,84.833,4.712]
[1645992067981,112.6,84.946,84.834,116.5]
[1645992068181,112.6,84.946,84.862,116.5]
[1645992068383,112.6,84.946,84.863,2.46586322]
[1645992068582,112.6,84.946,84.862,116.5]
[1645992068583,1.74859852,84.945,84.861,15.6016223]
[1645992068983,4.49538773,84.945,84.861,15.6016223]
[1645992069183,36.21913823,84.944,84.861,15.6016223]
[1645992069381,2.18836249,84.943,84.861,15.6016223]
[1645992069580,6.0,84.942,84.821,4.711]
[1645992069780,6.0,84.942,84.831,4.711]
[1645992069983,10.47235654,84.942,84.831,4.711]
[1645992070182,2.74678921,84.941,84.834,2.37517775]
[1645992070383,2.74678921,84.941,84.84,17.678]
[1645992070581,112.6,84.946,84.841,2.42802957]
[1645992070781,2.74678921,84.954,84.842,6.0]
[1645992070987,6.0,84.953,84.843,116.5]
[1645992071187,6.0,84.964,84.845,116.5]
[1645992071385,2.74678921,84.977,84.848,2.64464669]
[1645992071592,2.74678921,84.997,84.891,4.54830638]
[1645992071788,2.74678921,84.997,84.891,121.04830638]
[1645992071986,2.74678921,84.997,84.892,2.01870856]
[1645992072187,112.6,85.006,84.892,2.01870856]
[1645992072386,112.6,85.006,84.895,2.04050858]
[1645992072589,112.6,85.006,84.898,2.68518028]
[1645992072792,2.10229555,85.004,84.896,10.708]
[1645992072986,6.0,85.003,84.896,10.708]
[1645992073191,1.82216168,85.001,84.896,4.708]
[1645992073391,6.0,85.0,84.882,4.708]
[1645992073590,116.5,84.999,84.851,152.6005]
[1645992073791,1.63041672,84.996,84.851,78.3103]
[1645992074089,2.19646231,84.993,84.849,22.9323]
[1645992074290,1.73161342,84.99,84.802,72.6799]
[1645992074491,4.38,84.967,84.847,28.94892476]
[1645992074691,115.5,84.963,84.847,28.94892476]
[1645992074889,115.5,84.961,84.802,72.6799]
[1645992075092,2.04248761,84.958,84.802,72.6799]
[1645992075299,1.85116656,84.955,84.802,72.6799]
[1645992075517,2.12081926,84.952,84.802,72.6799]
[1645992075721,6.0,84.951,84.802,72.6799]
[1645992075913,32.19756887,84.951,84.805,116.5]
[1645992076112,6.0,84.95,84.811,186.28]
[1645992076313,6.0,84.95,84.86,17.6729]
[1645992076513,2.74678921,84.949,84.831,2.84057405]
[1645992076714,6.0,84.948,84.832,6.0]
[1645992077212,4.89742307,84.949,84.834,116.5]
[1645992077415,2.15063386,84.949,84.836,116.5]
[1645992077616,2.15063386,84.949,84.835,6.0]
[1645992077617,2.15063386,84.949,84.851,28.91848902]
[1645992077817,2.15063386,84.949,84.852,6.0]
[1645992078115,2.15063386,84.949,84.853,116.5]
[1645992078315,1.77506096,84.987,84.856,2.4315841]
[1645992078514,1.6323215,84.998,84.86,58.8986]
[1645992078719,23.00602394,84.991,84.862,116.5]
[1645992078915,1.81419409,84.99,84.865,2.21491168]
[1645992079123,27.66646592,84.995,84.869,116.5]
[1645992079318,27.66646592,84.995,84.871,116.5]
[1645992079526,27.66646592,84.995,84.91,17.6633]
[1645992079715,2.21369669,84.994,84.912,28.91848902]
[1645992079917,2.21369669,84.994,84.913,6.0]
[1645992080318,112.6,85.004,84.914,116.5]
[1645992080517,2.05613822,85.048,84.97,17.6505]
[1645992080719,213.12095373,85.049,84.971,116.5]
[1645992080917,213.12095373,85.049,84.972,6.0]
[1645992081115,213.12095373,85.049,84.951,116.5]
[1645992081316,32.15259997,85.047,84.954,2.36450797]
[1645992081517,32.15259997,85.047,84.956,116.5]
[1645992081815,32.15259997,85.047,84.958,116.5]
[1645992082016,4.705,85.089,84.957,6.0]
[1645992082017,4.705,85.089,84.988,69.78]
[1645992082215,1.62956821,85.139,84.988,69.78]
[1645992082216,4.705,85.077,85.009,116.5]
[1645992082416,4.703,85.138,85.018,2.53844802]
[1645992082618,1.95696244,85.146,85.021,2.58593693]
[1645992082818,1.95696244,85.146,85.02,13.77]
[1645992083018,4.703,85.138,85.022,27.23240157]
[1645992083218,2.05499107,85.144,85.023,6.0]
[1645992083219,118.55499107,85.144,85.023,6.0]
[1645992083421,2.05499107,85.144,85.023,6.0]
[1645992083617,24.91479532,85.143,85.023,6.0]
[1645992083819,8.09622483,85.142,85.023,6.0]
[1645992084018,33.01102015,85.142,85.023,6.0]
[1645992084221,33.01102015,85.142,84.98,13.77]
[1645992084222,6.55520317,85.141,84.99,17.6484]
[1645992084422,4.38,85.137,84.99,17.6484]
[1645992084720,2.070168,85.139,84.961,2.58877696]
[1645992084721,4.38,85.127,84.961,4.121635]
[1645992084922,116.5,85.125,84.961,4.121635]
[1645992085123,6.0,85.126,84.961,4.121635]
[1645992085124,4.38,85.117,84.962,33.52002348]
[1645992085324,16.4210608,85.124,84.962,33.52002348]
[1645992085325,6.0,85.116,84.962,33.52002348]
[1645992085621,6.64128108,85.115,84.963,6.0]
[1645992085821,8.06062804,85.114,84.963,6.0]
[1645992086022,8.06062804,85.114,84.965,116.5]
[1645992086023,2.06062804,85.114,84.965,116.5]
[1645992086223,4.703,85.113,85.01,17.6437]
[1645992086423,7.44978921,85.113,85.011,27.66776459]
[1645992086622,24.0623,85.167,85.011,27.66776459]
[1645992086623,4.702,85.122,85.013,2.19433245]
[1645992086823,4.702,85.122,85.022,2.69095647]
[1645992087022,4.702,85.122,85.021,69.78]
[1645992087023,6.467818,85.161,85.025,2.69939953]
[1645992087523,18.36753192,85.16,85.071,150.6558461]
[1645992087724,1.92890004,85.159,85.071,34.1558461]
[1645992087933,6.62790004,85.159,85.071,34.1558461]
[1645992088423,6.62790004,85.159,85.03,13.77]
[1645992088624,6.62790004,85.159,85.031,6.0]
[1645992089024,6.62790004,85.159,85.032,116.5]
[1645992089227,6.62790004,85.159,85.034,116.5]
[1645992089423,6.62790004,85.159,85.036,116.5]
[1645992089624,6.62790004,85.159,85.041,116.5]
[1645992089824,6.62790004,85.159,85.04,17.6342]
[1645992089825,6.62790004,85.159,85.043,116.5]
[1645992090027,6.62790004,85.159,85.045,116.5]
[1645992090227,6.62790004,85.159,85.047,116.5]
[1645992090429,6.62790004,85.159,85.049,116.5]
[1645992090630,6.62790004,85.159,85.051,116.5]
[1645992090828,6.62790004,85.159,85.052,6.0]
[1645992091027,6.62790004,85.159,85.053,116.5]
[1645992091228,6.62790004,85.159,85.055,116.5]
[1645992091528,4.699,85.159,85.063,116.5]
[1645992091730,4.699,85.159,85.065,116.5]
[1645992091929,1.75451297,85.193,85.067,116.5]
[1645992091930,4.699,85.192,85.067,116.5]
[1645992092127,4.699,85.192,85.071,116.5]
[1645992092328,4.699,85.192,85.073,116.5]
[1645992092528,80.78468842,85.241,85.077,206.5]
[1645992092735,1.69647166,85.268,85.093,69.78]
[1645992092934,4.197,85.24,85.103,69.78]
[1645992093131,4.696,85.267,85.114,116.5]
[1645992093331,18.77401611,85.266,85.131,69.78]
[1645992093534,4.694,85.265,85.14,130.27]
[1645992093731,1.40042707,85.265,85.141,8.90122622]
[1645992093930,6.0,85.264,85.141,8.90122622]
[1645992094131,6.0,85.264,85.131,26.32316473]
[1645992094132,116.5,85.263,85.131,26.32316473]
[1645992094332,12.52843064,85.262,85.132,2.43289311]
[1645992094631,1.43445554,85.261,85.132,2.43289311]
[1645992094832,10.695,85.26,85.112,4.121635]
[1645992095041,1.50662902,85.259,85.113,6.0]
[1645992095232,1.50662902,85.259,85.112,4.121635]
[1645992095233,17.6261,85.24,85.112,4.121635]
[1645992095444,7.48001532,85.239,85.113,6.0]
[1645992095836,11.9083732,85.238,85.114,25.89975933]
[1645992096034,7.45382109,85.237,85.115,2.42378859]
[1645992096234,4.696,85.236,85.115,2.42378859]
[1645992096438,6.0,85.235,85.115,2.42378859]
[1645992096733,6.50641906,85.234,85.115,2.42378859]
[1645992096938,6.0,85.233,85.115,2.42378859]
[1645992097139,7.35307057,85.233,85.116,6.0]
[1645992097338,6.24273824,85.232,85.116,6.0]
[1645992097537,7.44973623,85.231,85.115,2.42378859]
[1645992097943,9.26017457,85.23,85.116,6.0]
[1645992098140,7.60983532,85.229,85.116,6.0]
[1645992098541,4.696,85.228,85.117,116.5]
[1645992098744,7.55539043,85.227,85.118,6.0]
[1645992098941,4.696,85.226,85.116,6.0]
[1645992099142,14.9355361,85.224,85.116,6.0]
[1645992099347,12.12806936,85.223,85.117,116.5]
[1645992099541,10.696,85.223,85.12,3.1128918]
[1645992099741,10.696,85.223,85.123,2.36031938]
[1645992099944,14.9355361,85.224,85.126,3.09371256]
[1645992100145,14.9355361,85.224,85.13,13.77]
[1645992100343,14.9355361,85.224,85.131,157.45536394]
[1645992100546,4.696,85.257,85.132,2.38708226]
[1645992100743,4.696,85.257,85.134,116.5]
[1645992100944,4.695,85.266,85.14,118.86299642]
[1645992101143,4.695,85.266,85.143,2.2525286]
[1645992101344,4.695,85.266,85.145,116.5]
[1645992101552,18.9319816,85.265,85.147,116.5]
[1645992101746,4.694,85.264,85.15,2.94158446]
[1645992101946,7.46357308,85.263,85.151,6.0]
[1645992102246,4.694,85.262,85.138,4.121635]
[1645992102447,6.0,85.261,85.138,4.121635]
[1645992102645,4.38,85.247,85.097,87.54008666]
[1645992102849,4.38,85.227,85.097,87.54008666]
[1645992103057,6.0,85.226,85.111,4.121635]
[1645992103251,22.55688469,85.226,85.112,35.58990808]
[1645992103451,1.8456334,85.225,85.113,2.91448758]
[1645992103650,6.0,85.224,85.113,2.91448758]
[1645992104050,8.74678921,85.224,85.113,2.91448758]
[1645992104252,6.0,85.224,85.113,2.91448758]
[1645992104451,6.0,85.224,85.113,2.74372766]
[1645992104652,8.74678921,85.224,85.113,2.74372766]
[1645992104851,8.74678921,85.224,85.114,6.0]
[1645992105051,6.0,85.224,85.114,6.0]
[1645992105455,6.0,85.224,85.113,6.0]
[1645992105854,7.54219875,85.224,85.113,8.62843648]
[1645992106055,1.82423497,85.224,85.113,8.62843648]
[1645992106254,6.0,85.223,85.113,6.0]
[1645992106454,6.0,85.223,85.091,122.5]
[1645992106455,13.44278921,85.223,85.091,122.5]
[1645992106655,4.55557507,85.222,85.092,2.47206314]
[1645992106854,6.0,85.221,85.093,6.0]
[1645992107056,8.74678921,85.221,85.094,116.5]
[1645992107254,4.697,85.22,85.096,116.5]
[1645992107457,7.44378921,85.22,85.1,116.5]
[1645992107655,6.48660354,85.225,85.102,116.5]
[1645992107855,6.0,85.224,85.104,116.5]
[1645992108054,4.696,85.223,85.106,116.5]
[1645992108258,4.696,85.223,85.11,13.77]
[1645992108454,4.696,85.225,85.111,156.09478995]
[1645992108655,4.696,85.225,85.112,2.99285085]
[1645992108854,4.696,85.225,85.114,116.5]
[1645992109062,4.696,85.225,85.116,116.5]
[1645992109292,4.696,85.225,85.141,116.5]
[1645992109485,4.696,85.225,85.12,13.77]
[1645992109486,4.695,85.248,85.143,116.5]
[1645992109686,6.2447366,85.266,85.145,116.5]
[1645992109884,4.695,85.266,85.149,186.28]
[1645992110184,15.20627937,85.265,85.152,37.30027097]
[1645992110384,4.694,85.264,85.154,2.71334115]
[1645992110585,4.694,85.264,85.157,2.69781076]
[1645992110788,4.694,85.264,85.161,116.5]
[1645992110983,4.694,85.264,85.163,116.5]
[1645992111185,4.694,85.264,85.166,26.94831752]
[1645992111386,4.694,85.264,85.169,186.28]
[1645992111587,4.694,85.264,85.171,116.5]
[1645992111790,4.694,85.264,85.173,116.5]
[1645992111990,4.694,85.264,85.176,2.92378224]
[1645992112189,4.694,85.264,85.18,116.5]
[1645992112385,15.20627937,85.265,85.183,2.58252329]
[1645992112585,15.20627937,85.265,85.185,116.5]
[1645992112888,1.36779885,85.314,85.195,116.5]
[1645992112889,1.76971918,85.313,85.195,116.5]
[1645992113086,1.76971918,85.313,85.205,116.5]
[1645992113290,1.76971918,85.313,85.206,2.25511585]
[1645992113485,1.76971918,85.313,85.204,69.78]
[1645992113486,1.76971918,85.313,85.208,116.5]
[1645992113685,14.87316204,85.312,85.21,116.5]
[1645992113887,14.87316204,85.312,85.186,8.74678921]
[1645992113888,6.42545289,85.311,85.211,6.0]
[1645992114091,149.04740147,85.31,85.176,2.74678921]
[1645992114291,4.38,85.307,85.097,76.3247]
[1645992114492,24.95638921,85.311,85.096,87.44008566]
[1645992114493,17.6225,85.24,85.11,17.6207]
[1645992114692,6.0,85.239,85.096,87.44008566]
[1645992114988,21.35200954,85.243,85.084,116.5]
[1645992115188,116.5,85.229,85.084,116.5]
[1645992115387,58.7658,85.23,85.084,116.5]
[1645992115388,1.82567537,85.226,85.084,116.5]
[1645992115584,116.5,85.224,85.084,116.5]
[1645992115789,10.697,85.223,85.084,116.5]
[1645992115987,1.76455758,85.222,85.084,213.52453934]
[1645992116186,10.697,85.221,85.084,213.52453934]
[1645992116387,2.06043409,85.22,85.086,186.28]
[1645992116591,6.0,85.219,85.086,186.28]
[1645992116788,6.0,85.219,85.091,186.28]
[1645992116992,6.54327529,85.236,85.094,2.35974485]
[1645992117189,6.0,85.235,85.133,186.28]
[1645992117389,8.01281643,85.235,85.135,186.28]
[1645992117589,8.01281643,85.235,85.137,186.28]
[1645992117791,8.01281643,85.235,85.139,186.28]
[1645992117988,8.01281643,85.235,85.141,116.5]
[1645992118188,8.01281643,85.235,85.143,116.5]
[1645992118391,8.01281643,85.235,85.147,116.5]
[1645992118592,8.01281643,85.235,85.149,116.5]
[1645992118789,7.51281643,85.235,85.151,116.5]
[1645992118991,4.695,85.269,85.161,116.5]
[1645992119191,4.695,85.269,85.152,6.0]
[1645992119192,4.695,85.269,85.166,28.63121409]
[1645992119391,4.692,85.27,85.17,17.61]
[1645992119590,2.74678921,85.269,85.17,116.5]
[1645992119791,4.692,85.268,85.17,116.5]
[1645992120395,6.64958928,85.283,85.174,116.5]
[1645992120594,6.64958928,85.283,85.176,116.5]
[1645992120793,6.64958928,85.283,85.18,116.5]
[1645992120997,1.95758928,85.283,85.182,116.5]
[1645992121194,4.692,85.298,85.184,116.5]
[1645992121395,7.52316791,85.297,85.186,116.5]
[1645992121694,8.74678921,85.297,85.188,116.5]
[1645992121896,4.692,85.296,85.19,116.5]
[1645992122094,6.0,85.295,85.18,134.1081]
[1645992122303,4.692,85.294,85.182,116.5]
[1645992122497,6.0,85.293,85.184,116.5]
[1645992122704,6.0,85.293,85.194,186.28]